Cogmind - Beta 15 @@@ ROGUE MODE // 2025.08.24 @ 22:42:04 Player: Genericgamer16 Result: Destroyed by WQ-IGX(R) with Subdweller Beam Cannon Performance ------------- Evolutions (0) 0 Regions Visited (3) 600 Robots Destroyed (22) 110 Value Destroyed (694) 694 Prototype IDs (0) 0 Alien Tech Used (0) 0 Bonus (-13) -13 TOTAL SCORE: 1391 Bonus ------- Friendly Fire -13 Cogmind --------- Core Integrity 0/250 Matter 281/300 Energy 144/160 System Corruption 0% Temperature Warm (199) Movement Walking (120) Location -10/Subcaves Parts ------- > --- POWER (1) -------- Light Nuclear Core > --- PROPULSION (2) --- Aluminum Leg Aluminum Leg > --- UTILITY (2) ------ Disposable Heat Sink > --- WEAPON (2) ------- Battle Rifle Flamer > --- INVENTORY (5) ---- Aluminum Leg Small Storage Unit Subdweller Machine Gun Peak State ------------ > --- POWER ------------ Light Nuclear Core > --- PROPULSION ------- Aluminum Leg Aluminum Leg > --- UTILITY ---------- Scrap Shield > --- WEAPON ----------- Battle Rifle Flamer > --- INVENTORY -------- Aluminum Leg Disposable Heat Sink Small Storage Unit Subdweller Machine Gun [Rating: 13] Favorites ----------- Power Light Ion Engine Engine Light Ion Engine Power Core Light Nuclear Core Propulsion Aluminum Leg Leg Aluminum Leg Utility Scrap Shield Device Disposable Heat Sink Storage Small Storage Unit Protection Scrap Shield Weapon Assault Rifle Energy Gun Particle Gun Energy Cannon Beam Cannon Ballistic Gun Assault Rifle Launcher Grenade Launcher Special Weapon Flamer Build | -11 -10 -10 -10 ------- Run | Yrd Mat Min Sub Slots Evolved . | . . . . Power . | . . . . Propulsion . | . . . . Utility . | . . . . Weapon . | . . . . Parts Attached 23 | 6 2 1 14 Power 6 | 1 . . 5 Engine 5 | 1 . . 4 Core 1 | . . . 1 Reactor . | . . . . Propulsion 3 | 2 . . 1 Treads . | . . . . Leg 3 | 2 . . 1 Wheel . | . . . . Hover . | . . . . Flight . | . . . . Utility 5 | 1 1 . 3 Device 1 | . . . 1 Storage 1 | 1 . . . Processor . | . . . . Hackware . | . . . . Protection 3 | . 1 . 2 Artifact . | . . . . Weapon 9 | 2 1 1 5 Energy Gun 1 | . . 1 . Energy Cannon 2 | . . . 2 Ballistic Gun 4 | 2 1 . 1 Ballistic Cannon . | . . . . Launcher 1 | . . . 1 Special Weapon 1 | . . . 1 Impact Weapon . | . . . . Slashing Weapon . | . . . . Piercing Weapon . | . . . . Special Melee Weapon . | . . . . Unidentified Prototypes . | . . . . Parts Lost 7 | . . . 7 Power 2 | . . . 2 Propulsion 1 | . . . 1 Utility 2 | . . . 2 Weapon 2 | . . . 2 Highest Loss Streak 3 | . . . 3 To Critical Strikes . | . . . . Average Backups 4 | 1 5 6 4 Power 1 | . 1 1 1 Propulsion 1 | 1 2 1 1 Utility 1 | . . 1 1 Weapon . | . 2 3 . Tool/Special . | . . . . Unused Backups 5 | . . 2 3 Power . | . . . . Propulsion 3 | . . 2 1 Utility 1 | . . . 1 Weapon 1 | . . . 1 Tool/Special . | . . . . Average Slot Usage (%) 87 | . 95 100 85 Engine 11 | . 14 14 10 Core 2 | . . . 2 Leg 27 | . 28 28 27 Storage 3 | . 14 14 1 Protection 13 | . 10 14 13 Energy Gun 1 | . . 4 1 Energy Cannon 5 | . . . 5 Ballistic Gun 15 | . 28 23 13 Special Weapon 5 | . . . 6 Peak Build Rating 13 | 6 7 8 13 Average Rating 9 | 4 6 7 10 On Entrance 5 | . 6 7 8 Naked Turns . | . . . . Heaviest Build 28 | 13 17 18 28 Greatest Support 20 | 20 20 20 20 Greatest Overweight (x) 2 | 1 . . 2 Average Overweight (x) . | . . . . Largest Inventory Capacity 8 | 8 8 8 8 Average Capacity 5 | 7 8 8 5 Most Carried 8 | 4 7 8 8 Average Carried 5 | 1 5 7 5 Final Capacity 8 | 8 8 8 5 Final Carried 8 | 4 7 8 3 Class Distribution -------------------- 100% | Mutant Dominant Class ---------------- Mutant | -10/Materials Mutant | -10/Mines Mutant | -10/Subcaves Resources | -11 -10 -10 -10 ----------- Run | Yrd Mat Min Sub Matter Collected 705 | 250 . 181 274 Remotely . | . . . . Salvage Created 858 | 77 12 278 491 Parts 55 | 3 1 14 37 Haulers Intercepted . | . . . . Recyclers Shooed . | . . . . Parts Field Recycled . | . . . . Retrieved Matter . | . . . . Parts Self-Destructed 11 | . . . 11 Prevented . | . . . . Kills | -11 -10 -10 -10 ------- Run | Yrd Mat Min Sub Combat Hostiles Destroyed 18 | . . 5 13 Guns 13 | . . 5 8 Cannons 3 | . . . 3 AOE 2 | . . . 2 Classes Destroyed 6 | 1 1 2 2 Recycler 3 | 1 . 2 . Operator 1 | . 1 . . Swarmer 3 | . . 3 . Grunt 4 | . . 2 2 Sentry 1 | . . . 1 Subdweller 10 | . . . 10 Best Kill Streak 5 | 1 1 5 3 Combat Bots Only 3 | . . 3 3 Max Kills in Single Turn 2 | 1 1 2 1 Gunslinging 1 | . . 1 . Exploded 1 | . . . 1 Melee . | . . . . Uniques/NPCs Destroyed . | . . . . Combat | -11 -10 -10 -10 -------- Run | Yrd Mat Min Sub Hostile Shots Fired 93 | . 1 19 73 Missed 21 | . . 3 18 Hits 72 | . 1 16 55 Projectile 72 | . 1 16 55 AOE 5 | . . . 5 Critical Strikes 1 | . . . 1 Damage Taken 1525 | . 10 161 1354 Core 269 | . . 55 214 Absorbed by Shields . | . . . . Core Remaining (%) 100 | 100 . . . Volleys Fired 81 | 8 4 16 53 Largest 2 | 1 2 2 2 Hottest 125 | 20 40 40 125 Shots Fired 147 | 8 8 32 99 Gun 106 | 8 8 32 58 Cannon 23 | . . . 23 Launcher 2 | . . . 2 Special 16 | . . . 16 Kinetic 94 | 8 8 32 46 Thermal 51 | . . . 51 Explosive 2 | . . . 2 Electromagnetic . | . . . . Robot Hit Streak 11 | 8 2 7 11 Robot Miss Streak 3 | . 3 2 2 Penetration Max . | . . . . Secondary Targets 2 | . . 1 1 Max Gunslinging Chain 1 | . . 1 1 Shots Hit Robots 102 | 8 3 22 69 Core Hits 46 | 2 2 12 30 Critical Kills . | . . . . Critical Parts Destroyed . | . . . . Critical Strikes . | . . . . Melee Attacks . | . . . . Impact . | . . . . Slashing . | . . . . Piercing . | . . . . Sneak Attacks . | . . . . Combat Hostiles . | . . . . Follow-up Attacks . | . . . . Damage Inflicted 1535 | 92 44 274 1125 Guns 993 | 92 41 274 586 Cannons 310 | . . . 310 Explosions 135 | . . . 135 Melee . | . . . . Ramming 3 | . 3 . . Kinetic 817 | 92 41 274 410 Thermal 580 | . . . 580 Explosive 135 | . . . 135 Electromagnetic . | . . . . Impact . | . . . . Slashing . | . . . . Piercing . | . . . . Highest Corruption . | . . . . Average Corruption . | . . . . Corruption Purged . | . . . . Corruption Blocked . | . . . . Overload Shots . | . . . . Overflow Damage . | . . . . Projectiles . | . . . . Explosions . | . . . . Melee . | . . . . Knockbacks . | . . . . Impact . | . . . . Kinetic . | . . . . Secondary . | . . . . Self-Inflicted Damage . | . . . . Shots . | . . . . Rammed . | . . . . Targets Rammed 1 | . 1 . . Kicked 1 | . 1 . . Crushed . | . . . . Highest Temperature 318 | . . 8 318 Average Temperature 41 | . . 3 50 Received Heat Transfer 510 | . 6 60 444 Effects 1 | . . . 1 Interference 1 | . . . 1 Siege Activations . | . . . . Martial Activations . | . . . . Shielding Activations . | . . . . Robots Disrupted 1 | . . . 1 Combat Hostiles 1 | . . . 1 Robots Corrupted . | . . . . Combat Hostiles . | . . . . Parts Fried . | . . . . Impact Corruptions . | . . . . Robots Melted . | . . . . Combat Hostiles . | . . . . Parts Melted . | . . . . Heat Transferred 1719 | . . . 1719 Parts Sabotaged . | . . . . Parts Stolen . | . . . . Parts Stripped . | . . . . Power Chain Reactions . | . . . . Alert | -11 -10 -10 -10 ------- Run | Yrd Mat Min Sub Maximum Alert Level . | . . . . Low Security (%) 100 | 100 100 100 . Level 1 . | . . . . Level 2 . | . . . . Level 3 . | . . . . Level 4 . | . . . . Level 5 . | . . . . High Security . | . . . . Max Security . | . . . . Peak Influence 105 | 5 5 105 . Initial . | . . . . Average 28 | . . 62 . Influence Increases 235 | 5 5 145 80 Destroy 0b10 Robot/C 160 | . . 100 60 Destroy 0b10 Robot/NC 20 | 5 5 10 . Destroy Leader 40 | . . 20 20 Disable Machine 15 | . . 15 . Influence Decreases 235 | 5 5 80 145 Entered New Map 34 | . . . 34 Time Decay 201 | 5 5 80 111 Squads Dispatched 2 | . 2 . . Investigation 1 | . 1 . . Extermination . | . . . . Reinforcement 1 | . 1 . . Assault . | . . . . Garrison . | . . . . Intercept . | . . . . Searches Triggered . | . . . . Construction Impeded . | . . . . Haulers Reinforced . | . . . . Active Scanning Responses . | . . . . Cargo Convoy Interrupts . | . . . . Stealth | -11 -10 -10 -10 --------- Run | Yrd Mat Min Sub Distress Signals . | . . . . Communications Jammed . | . . . . Distress Signals . | . . . . Times Spotted 25 | . 4 5 16 Peak Tracking Total 3 | . 3 3 3 Tactical Retreats . | . . . . Traps | -11 -10 -10 -10 ------- Run | Yrd Mat Min Sub Traps Triggered 1 | . 1 . . Indirectly . | . . . . Trap Hack Attempts . | . . . . Triggered . | . . . . Disarmed . | . . . . Reprogrammed . | . . . . Reused . | . . . . Traps Extracted . | . . . . Installed 2 | . . 2 . Triggered . | . . . . Most Traps Carried 2 | . . 2 1 Machines | -11 -10 -10 -10 ---------- Run | Yrd Mat Min Sub Machines Disabled 1 | . . 1 . Max in Single Turn 1 | . . 1 . Machines Repaired . | . . . . Machines Dismantled . | . . . . Machines Sabotaged . | . . . . Overloaded Fab Kills . | . . . . Hacking | -11 -10 -10 -10 --------- Run | Yrd Mat Min Sub Machines Accessed 1 | . 1 . . Terminals 1 | . 1 . . Fabricators . | . . . . Repair Stations . | . . . . Recycling Units . | . . . . Scanalyzers . | . . . . Garrison Access . | . . . . Total Hacks 3 | . 3 . . Successful 1 | . 1 . . Failed 2 | . 2 . . Catastrophic . | . . . . Database Lockouts . | . . . . Manual . | . . . . Terminals 3 | . 3 . . Fabricators . | . . . . Repair Stations . | . . . . Recycling Units . | . . . . Scanalyzers . | . . . . Garrison Access . | . . . . Terminal Hacks 1 | . 1 . . Record 1 | . 1 . . Fabricator Hacks . | . . . . Repair Station Hacks . | . . . . Recycling Unit Hacks . | . . . . Scanalyzer . | . . . . Garrison Access Hacks . | . . . . Unauthorized Hacks . | . . . . Terminals . | . . . . Fabricators . | . . . . Repair Stations . | . . . . Recycling Units . | . . . . Scanalyzers . | . . . . Garrison Access . | . . . . Data Cores Recovered . | . . . . Used . | . . . . Hacking Detections 1 | . 1 . . Full Trace Events 1 | . 1 . . Feedback Events . | . . . . Feedback Blocked . | . . . . Robot Schematics Acquired . | . . . . Robots Built . | . . . . Authchips . | . . . . Time . | . . . . Total Robot Build Rating . | . . . . Part Schematics Acquired . | . . . . Parts Built . | . . . . Authchips . | . . . . Time . | . . . . Total Part Build Rating . | . . . . Parts Repaired . | . . . . Time . | . . . . Parts Recycled . | . . . . Recycled Matter . | . . . . Retrieved Matter . | . . . . Retrieved Components . | . . . . Parts Scanalyzed . | . . . . Part Schematics Acquired . | . . . . Parts Damaged . | . . . . Bothacking | -11 -10 -10 -10 ------------ Run | Yrd Mat Min Sub Used RIF Installer . | . . . . Robots Hacked . | . . . . Non-combat . | . . . . Combat . | . . . . Robot Hacks Applied . | . . . . Relay Couplers Released . | . . . . Fabnet Peak Effective % . | . . . . Robots Rewired . | . . . . Allies Hacked . | . . . . Hacks Repelled . | . . . . Allies | -11 -10 -10 -10 -------- Run | Yrd Mat Min Sub Total Allies . | . . . . Largest Group . | . . . . Highest-Rated Group . | . . . . Highest-Rated Ally . | . . . . Total Orders . | . . . . Ally Attacks . | . . . . Total Damage . | . . . . Kills . | . . . . Allies Corrupted . | . . . . Allies Melted . | . . . . Intel | -11 -10 -10 -10 ------- Run | Yrd Mat Min Sub Active Infowar (turns) . | . . . . Robot Analysis Total . | . . . . Derelict Logs Recovered 1 | . . . 1 Drone Launches . | . . . . Drone Recoveries . | . . . . Exploration | -11 -10 -10 -10 ------------- Run | Yrd Mat Min Sub Turns Passed 2736 | 97 162 210 2267 Spaces Moved 1397 | 57 119 115 1106 Core 8 | 8 . . . Treads . | . . . . Legs 1389 | 49 119 115 1106 Wheels . | . . . . Hover . | . . . . Flight . | . . . . Fastest Speed 50 | 50 120 120 120 Average Speed 168 | 114 120 120 181 Slowest Speed 260 | 120 120 120 260 Overloaded Moves . | . . . . Propulsion Burnouts . | . . . . Robots Hopped . | . . . . Potential Cave-ins . | . . . . Cave-ins Triggered . | . . . . Exploration Rate (%) 26 | 4 25 22 53 Regions Visited 3 Branch Regions 2 Pre-discovered Areas . | . . . . Known Exits Taken . | . . . . Unknown Exits Taken 3 | 1 1 1 . Scrap Searched 2 | . . . 2 Spaces Dug . | . . . . Terrain Destroyed 12 | . . . 12 Melee . | . . . . Projectile . | . . . . AOE 12 | . . . 12 Terrain Rammed . | . . . . Walls Destroyed . | . . . . Machines Disabled . | . . . . Actions | -11 -10 -10 -10 --------- Run | Yrd Mat Min Sub Total 1621 | 80 129 156 1256 Wait 52 | . . 15 37 Move 1394 | 56 118 114 1106 Hop . | . . . . Pick Up 27 | 10 4 4 9 Fast Attach 5 | . . 1 4 Attach 15 | 6 1 . 8 Detach . | . . . . Swap 6 | . 1 . 5 Drop 17 | . . 4 13 Fire 81 | 8 4 16 53 Melee . | . . . . Ram . | . . . . Kick 1 | . 1 . . Crush . | . . . . Escape Stasis . | . . . . Rewire 12 | . . . 12 Trap 2 | . . 2 . Miscellaneous 9 | . . . 9 Route ------- -11/Scrapyard -10/Materials -10/Mines (discovered 2 exits: [*Mat] / [*Sub]) -10/Subcaves History --------- Turn | Location | Event 7 | -11/Scrapyard | Discovered new exit (range 15) 98 | -11/Scrapyard | Entered Materials 253 | -10/Materials | Discovered new exit (range 6) 260 | -10/Materials | Entered Mines 271 | -10/Mines | Found a hidden stash of uninstalled traps 318 | -10/Mines | Build established: Mutant 457 | -10/Mines | Discovered new exit (range 12) 458 | -10/Mines | Discovered new exit (range 5) 470 | -10/Mines | Entered Subcaves 471 | -10/Subcaves | Approached by a straggling Scientist 480 | -10/Subcaves | Learned Materials terminal intel 593 | -10/Subcaves | Ambushed by Subdwellers from Twisted Machinery 593 | -10/Subcaves | Ambushed by Subdweller buried in earth 703 | -10/Subcaves | Lost 3 parts (1p1u1w) 741 | -10/Subcaves | Shifting Twisted Machinery released Lgt. Humpback 741 | -10/Subcaves | Shifting Twisted Machinery released Sub. Beam Cannon 1173 | -10/Subcaves | A swath of the cavern ceiling suddenly collapsed 1387 | -10/Subcaves | Core integrity fell below 50% 1673 | -10/Subcaves | Shifting Twisted Machinery released Sub. Machine Gun 1722 | -10/Subcaves | Shifting Twisted Machinery released Sub. Beam Cannon 2734 | -10/Subcaves | Core integrity fell below 20% 2737 | -10/Subcaves | Destroyed by WQ-IGX(R) with Subdweller Beam Cannon Last Messages --------------- 02204_ Found 32 Matter. 02206_ Searching scrap... 02206_ Found Sub. Machine Gun. 02206_ Found Sub. Power Source. 02206_ Found 53 Matter. 02314_ Scrap Shield Fragment affixed to Scrap Shield (+47). 02328_ Subatomizers dissect the Sub. Optics. 02513_ Sub. Power Source shoots sparks and powers down. 02513_ Dropped Broken Sub. Power Source. 02523_ Scrap Shield Fragment affixed to Scrap Shield (+6). 02524_ Dropped Sub. Optics. 02528_ Acquired Disposable Heat Sink. 02625_ Acquired 10 matter. 02729_ Critical hit (Meltdown: +300). 02734_ Overheating: System interference. 02734_ Flamer temporarily disabled. 02736_ Dropped Scrap Shield. Map ----- +----------------------------------------------------+ | ?????????????????????????????????????????????????? | | ?????????????????????????????????????????????????? | | ?????????????????????????????????????????????????? | | ?????????????????????????????????????????????????? | | ?????????????????????????????????????????????????? | | ?????????????????????????????????????????????????? | | ?????????????????????????????????????????????????? | | ?????????????????????????????????????????????????? | | ?????????????????????????????????????????????????? | | ?????????????????????????????????????????????????? | | ?????????????????????????????????????????????????? | | ?????????????????????????????????????????????????? | | ?????????????????????????????????????????????????? | | ?????????????????????????????????????????????????? | | ?????????????????????????????????????????????????? | | ?????????????????????????????????????????????????# | | ????????????????????????????????????####????????## | | ????????????????????????????????????# #######??# | | ???????????? ??????????????????????# ##??# | | ????????????? ????????????????????## ##?? | | ?????????????? ???????????????????###### ### | | ??????????????# #??#####???????????????# # | | ??????????????# ## ##??????????##### | | ????????????????? " "R ##????????## ## | | ????????????????????? R ###??????# #### | | ????????????????????????#@ ###????## ##??# | | ????????????????????????# ##????## ##??## | | ???????????????????????#"" ### #####?# ##?? | | ?????????????????????# "" #?## # ### ## | | ????????????????????# ""##??## | | ???????????????????"" "###????# # | | ??????????????????? " ##???????# # ## # | | ??????????????????? #????????# #### ## ## | | ??????????????????? ?????????#####??# ########? | | ?????????????????? ?????????????????## #???????? | | ????????????????????????????????????# ##???????? | | ???????????????????????????????????## #???????? | | ???????????????????????????????????# #???????? | | ?????????????????????????????????## # ##?????### | | ????????????????????????????????## # #????## # | | ????????????????????????????????# # ##????# | | ????????????????????????????????# # #?#### | | ????????????????????????????????# # ### ## | | ????????????????????????????????# ### #? | | ????????????????????????????????# ## | | ????????????????????????????????## ## ### | | ?????????????????????????????????###?# ### | | ?????????????????????????????????????# ## | | ?????????????????????????????????????# ## | | ?????????????????????????????????????## ### ## | +----------------------------------------------------+ Best States ------------- Heat Dissipation 25 Energy Generation 15 Energy Capacity 250 Matter Stores 300 Matter Capacity 300 Sight Range 16 Terrain Scan Density 10 Armor Coverage 800 Evasion (%) 55 Item Schematics ----------------- None Robot Schematics ------------------ None Fabricated ------------ Nothing Repaired ---------- Nothing Alien Tech Used ----------------- None Achievements -------------- None Challenges ------------ None Game ------ Seed MakeshiftReinforcedMaul Manual? 0 Play Time 00:19:07 Cumulative 22.9 hours Start 2025.08.24 @ 22:16:45 End 2025.08.24 @ 22:42:04 Sessions 1 Manual Loads 0 Difficulty Rogue Special Mode None Game No. 28 Rogue 28 Adventurer 0 Explorer 0 Win Type - Total 0 Types 0/0/0/0/0/0/0/0/0/0 Lore% 18 Gallery% 21 Achievement% 19 Wizard Run 0 Options --------- Layout 1 ASCII 0 Keyboard 0 Movement Mouse Keybinds 0 Fullscreen 1 Font 24/Smallcaps Map View 50x35 Zoom Use 0% Tactical HUD 1 Map Filters NONE Filters NONE Steam 1 RUN: 7bcd7ce1-d04d-4c5d-8c41-f7caa0174047